fUST/lending_fUST_20250311
["ID","MTS","AMOUNT","RATE_DAILY","PERIOD"]
[355873310,1741666162088,-500.0,0.00042399,2]
[355873311,1741666162111,-500.0,0.00042399,2]
[355873312,1741666162136,-500.0,0.00042399,2]
[355873313,1741666162159,-500.0,0.00042399,2]
[355873314,1741666162182,-500.0,0.00042399,2]
[355873315,1741666162206,-500.0,0.00042399,2]
[355873316,1741666162229,-500.0,0.00042399,2]
[355873317,1741666162253,-500.0,0.00042399,2]
[355873318,1741666162279,-527.78562474,0.00042399,2]
[355873319,1741666162302,-307.75280225,0.00042399,2]
[355873380,1741666232542,-754.97856988,0.000424,15]
[355873381,1741666232552,-293.18977584,0.00043192,120]
[355873382,1741666232562,-160.0,0.00043458,2]
[355873383,1741666232574,-502.21392551,0.0004375,2]
[355873384,1741666232583,-500.0,0.0004375,10]
[355873385,1741666232593,-755.80122168,0.00043945,2]
[355873386,1741666232603,-173.0,0.00044,90]
[355873387,1741666232613,-755.80122168,0.00044196,2]
[355873388,1741666232623,-755.80122168,0.0004449,2]
[355873389,1741666232632,-799.99,0.0004457,120]
[355873390,1741666232643,-800.05,0.0004457,120]
[355873391,1741666232653,-755.80122168,0.00044885,2]
[355873392,1741666232663,-167.671834,0.00044928,30]
[355873393,1741666232672,-500.0,0.00044937,10]
[355873394,1741666232682,-500.0,0.00044937,7]
[355873395,1741666232691,-500.0,0.00044937,10]
[355873396,1741666232701,-150.9,0.0004499,2]
[355873397,1741666232710,-12486.0659401,0.00045,120]
[355873398,1741666232720,-755.80122168,0.00045008,2]
[355873399,1741666232729,-755.80122168,0.00045206,2]
[355873400,1741666232739,-150.9,0.00045629,2]
[355873401,1741666232748,-755.80122168,0.00045639,2]
[355873402,1741666232758,-755.80122168,0.00045763,2]
[355873403,1741666232767,-1000.0,0.000458,4]
[355873404,1741666232777,-150.9,0.0004599,2]
[355873405,1741666232786,-179.718,0.00045991,75]
[355873406,1741666232797,-3035.32681031,0.00046,33]
[355873407,1741666232806,-173.0,0.00046027,90]
[355873408,1741666232817,-755.80122168,0.00046158,2]
[355873409,1741666232827,-416.66666667,0.00046246,2]
[355873410,1741666232836,-150.9,0.0004628,2]
[355873411,1741666232846,-2004.46,0.0004629,10]
[355873412,1741666232855,-1670.38,0.0004629,10]
[355873413,1741666232865,-1391.98,0.0004629,10]
[355873414,1741666232874,-150.9,0.0004629,2]
[355873415,1741666232884,-150.9,0.0004629,2]
[355873416,1741666232893,-150.9,0.0004629,2]
[355873417,1741666232902,-322.42064512,0.00046299,31]
[355873418,1741666232912,-249.79973584,0.00046299,120]
[355873419,1741666232922,-151.0,0.000463,24]
[355873420,1741666232931,-80000.00000199,0.000463,8]
[355873421,1741666232941,-191.35772304,0.00046367,2]
[355873422,1741666232951,-755.80122174,0.00046374,2]
[355873423,1741666232960,-30000.0,0.000464,8]
[355873424,1741666232970,-19650.2880613,0.0004643,4]
[355873425,1741666232980,-151.0,0.0004644,2]
[355873426,1741666232990,-600.0,0.0004644,2]
[355873427,1741666232999,-169.66,0.00046447,120]
[355873428,1741666233009,-19650.2880613,0.00046448,4]
[355873429,1741666233019,-6989.92,0.00046457,120]
[355873430,1741666233030,-19650.2880613,0.00046457,4]
[355873431,1741666233040,-78601.1522453,0.00046457,4]
[355873432,1741666233051,-240.721494,0.00046467,120]
[355873433,1741666233063,-511.0839197,0.00046467,2]
[355873434,1741666233074,-222000.0,0.00046467,2]
[355873435,1741666233085,-622.2,0.00046495,2]
[355873436,1741666233095,-486.43,0.000465,30]
[355873437,1741666233106,-317.83,0.000465,30]
[355873438,1741666233116,-55555.0,0.000465,120]
[355873439,1741666233126,-645.2214,0.0004655,2]
[355873440,1741666233135,-201095.99087947,0.00046558,36]
[355873441,1741666233146,-19650.2880613,0.00046558,4]
[355873442,1741666233156,-600.0,0.00046568,120]
[355873443,1741666233166,-500.0,0.00046568,30]
[355873444,1741666233176,-500.0,0.00046568,30]
[355873445,1741666233186,-500.0,0.00046568,30]
[355873446,1741666233198,-500.0,0.00046568,30]
[355873447,1741666233209,-500.0,0.00046568,30]
[355873448,1741666233220,-568.23578989,0.00046568,30]
[355873449,1741666233231,-226.99,0.00046568,30]
[355873450,1741666233242,-1000.0,0.00046568,2]
[355873451,1741666233253,-1000.0,0.00046568,2]
[355873452,1741666233264,-1000.0,0.00046568,2]
[355873453,1741666233275,-1000.0,0.00046568,2]
[355873454,1741666233286,-1000.0,0.00046568,2]
[355873455,1741666233297,-1000.0,0.00046568,2]
[355873456,1741666233308,-1000.0,0.00046568,2]
[355873457,1741666233319,-1000.0,0.00046568,2]
[355873458,1741666233330,-1000.0,0.00046568,2]
[355873459,1741666233341,-1000.0,0.00046568,2]
[355873460,1741666233352,-1000.0,0.00046568,2]
[355873461,1741666233363,-1000.0,0.00046568,2]
[355873462,1741666233373,-1000.0,0.00046568,2]
[355873463,1741666233384,-1000.0,0.00046568,2]
[355873464,1741666233398,-183.82145957,0.00046568,2]
[355873469,1741666238347,-500.0,0.00045999,2]
[355873470,1741666238357,-190.75514543,0.00045999,2]
[355873471,1741666238366,-40.09051232,0.00045999,2]
[355873472,1741666238395,-459.90948768,0.00045999,2]
[355873473,1741666238406,-500.0,0.00045999,2]
[355873474,1741666238417,-500.0,0.00045999,2]
[355873475,1741666238427,-500.0,0.00045999,2]
[355873476,1741666238437,-500.0,0.00045999,2]
[355873477,1741666238447,-500.0,0.00045999,2]
[355873478,1741666238457,-500.0,0.00045999,2]
[355873479,1741666238467,-500.0,0.00045999,2]
[355873480,1741666238476,-500.0,0.00045999,2]
[355873481,1741666238486,-500.0,0.00045999,2]
[355873482,1741666238496,-500.0,0.00045999,2]
[355873483,1741666238506,-500.0,0.00045999,2]
[355873484,1741666238515,-500.0,0.00045999,2]
[355873485,1741666238530,-500.0,0.00045999,2]
[355873486,1741666238540,-500.0,0.00045999,2]
[355873487,1741666238549,-365.87872542,0.00045999,2]
[355873488,1741666238560,-5051.54554901,0.00046557,47]
[355873489,1741666238581,-22361.62268551,0.00046557,47]
[355873490,1741666238591,-816.17854043,0.00046568,2]
[355873491,1741666238601,-1000.0,0.00046568,2]
[355873492,1741666238612,-1000.0,0.00046568,2]
[355873493,1741666238622,-1000.0,0.00046568,2]
[355873494,1741666238632,-1000.0,0.00046568,2]
[355873495,1741666238642,-1000.0,0.00046568,2]
[355873496,1741666238651,-1000.0,0.00046568,2]
[355873497,1741666238661,-1000.0,0.00046568,2]
[355873498,1741666238670,-1000.0,0.00046568,2]
[355873499,1741666238681,-569.48,0.00046568,2]
[355873500,1741666238689,-500.0,0.00046573,10]
[355873501,1741666238699,-500.0,0.00046573,10]
[355873502,1741666238709,-500.0,0.00046573,10]
[355873503,1741666238719,-500.0,0.00046573,10]
[355873504,1741666238728,-647.94541533,0.00046573,2]
[355873505,1741666238738,-410.0,0.00046573,10]
[355873506,1741666238748,-500.0,0.00046575,120]
[355873507,1741666238758,-814.17,0.00046575,60]
[355873508,1741666238767,-155.417131,0.00046575,30]
[355873509,1741666238778,-155.417131,0.00046575,30]
[355873510,1741666238787,-154.0164811,0.00046575,30]
[355873511,1741666238797,-155.3619476,0.00046575,30]
[355873512,1741666238806,-500.0,0.00046578,120]
[355873513,1741666238816,-408.42502168,0.00046578,120]
[355873514,1741666238825,-250.0,0.00046578,2]
[355873515,1741666238834,-156.26,0.000466,30]
[355873516,1741666238843,-2293.71,0.000466,30]
[355873517,1741666238853,-758.04,0.000466,30]
[355873518,1741666238862,-151.0,0.000466,22]
[355873519,1741666238872,-583.36,0.000466,30]
[355873520,1741666238882,-669.0945918,0.00046605,2]
[355873521,1741666238891,-19650.2880613,0.00046657,4]
[355873522,1741666238900,-693.8510917,0.0004666,2]
[355873523,1741666238909,-151.0,0.00046698,120]
[355873524,1741666238919,-151.0,0.00046699,120]
[355873525,1741666238928,-719.52358209,0.00046715,2]
[355873526,1741666238938,-746.14595463,0.0004677,2]
[355873527,1741666238947,-152.271465,0.00046789,120]
[355873528,1741666238957,-1000.0,0.000468,30]
[355873529,1741666238966,-159.89199501,0.00046822,120]
[355873530,1741666238976,-773.75335495,0.00046825,2]
[355873531,1741666238986,-814.17,0.00046849,60]
[355873532,1741666238996,-155.3619476,0.00046849,30]
[355873533,1741666239006,-155.3619476,0.00046849,30]
[355873534,1741666239016,-167.7966245,0.00046849,30]
[355873535,1741666239026,-500.0,0.00046852,120]
[355873536,1741666239035,-802.38222908,0.0004688,2]
[355873537,1741666239045,-293.18977584,0.00046888,120]
[355873538,1741666239055,-151.0,0.000469,21]
[355873539,1741666239064,-160.0,0.00046928,5]
[355873540,1741666239074,-832.07037156,0.00046935,2]
[355873541,1741666239084,-156.587,0.00046988,2]
[355873542,1741666239093,-862.8569753,0.0004699,2]
[355873543,1741666239103,-500.0,0.00047,2]
[355873544,1741666239114,-500.0,0.00047,2]
[355873545,1741666239124,-500.0,0.00047,2]
[355873546,1741666239134,-500.0,0.00047,2]
[355873547,1741666239144,-500.0,0.00047,2]
[355873548,1741666239154,-500.0,0.00047,2]
[355873549,1741666239164,-500.0,0.00047,2]
[355873550,1741666239174,-500.0,0.00047,2]
[355873551,1741666239183,-500.0,0.00047,2]
[355873552,1741666239411,-500.0,0.00047,2]
[355873553,1741666239423,-500.0,0.00047,2]
[355873554,1741666239432,-500.0,0.00047,2]
[355873555,1741666239442,-500.0,0.00047,2]
[355873556,1741666239452,-500.0,0.00047,2]
[355873557,1741666239463,-500.0,0.00047,2]
[355873558,1741666239473,-500.0,0.00047,2]
[355873559,1741666239483,-500.0,0.00047,2]
[355873560,1741666239493,-500.0,0.00047,2]
[355873561,1741666239503,-500.0,0.00047,2]
[355873562,1741666239513,-528.17,0.00047,2]
[355873563,1741666239523,-167.671834,0.0004704,90]
[355873564,1741666239536,-894.78268339,0.00047045,2]
[355873565,1741666239545,-159.89199501,0.00047068,120]
[355873566,1741666239554,-16632.81538612,0.00047087,2]
[355873567,1741666239564,-486.43,0.000471,30]
[355873568,1741666239575,-317.83,0.000471,30]
[355873569,1741666239585,-927.88964268,0.000471,2]
[355873570,1741666239594,-500.0,0.00047123,120]
[355873571,1741666239606,-814.17,0.00047123,60]
[355873572,1741666239616,-164.666004,0.00047123,2]
[355873573,1741666239626,-500.0,0.00047126,120]
[355873574,1741666239636,-962.22155946,0.00047155,2]
[355873575,1741666239646,-151.0,0.000472,27]
[355873576,1741666239656,-583.36,0.000472,30]
[355873577,1741666239666,-997.82375716,0.0004721,2]
[355873578,1741666239676,-1034.74323617,0.00047265,2]
[355873579,1741666239686,-159.89199501,0.00047315,120]
[355873580,1741666239701,-1073.02873591,0.0004732,2]
[355873581,1741666239711,-1159.99,0.00047323,10]
[355873582,1741666239721,-2975.3804657,0.00047333,4]
[355873583,1741666239731,-1112.73079914,0.00047375,2]
[355873584,1741666239740,-814.17,0.00047397,60]
[355873585,1741666239750,-500.0,0.000474,120]
[355873586,1741666239759,-19650.2880613,0.00047407,4]
[355873587,1741666239769,-316.0,0.00047417,30]
[355873588,1741666239778,-316.0,0.00047417,30]
[355873589,1741666239788,-316.0,0.00047417,30]
[355873590,1741666239798,-316.0,0.00047417,30]
[355873591,1741666239808,-316.0,0.00047417,30]
[355873592,1741666239818,-316.0,0.00047417,30]
[355873593,1741666239827,-316.0,0.00047417,30]
[355873594,1741666239837,-316.0,0.00047417,30]
[355873595,1741666239847,-500.0,0.00047425,10]
[355873596,1741666239858,-500.0,0.00047425,10]
[355873597,1741666239868,-500.0,0.00047425,10]
[355873598,1741666239878,-500.0,0.00047425,10]
[355873599,1741666239888,-506.53573583,0.00047425,10]
[355873600,1741666239897,-500.0,0.00047425,10]
[355873601,1741666239908,-500.0,0.00047425,4]
[355873602,1741666239918,-500.0,0.00047425,10]
[355873603,1741666239927,-500.0,0.00047425,10]
[355873604,1741666239936,-557.5181955,0.00047425,10]
[355873605,1741666239946,-500.0,0.00047425,10]
[355873606,1741666239955,-500.0,0.00047425,10]
[355873607,1741666239965,-500.0,0.00047425,10]
[355873608,1741666239974,-500.0,0.00047425,10]
[355873609,1741666239984,-500.0,0.00047425,10]
[355873610,1741666239994,-307.53587613,0.00047425,10]
[355873611,1741666240003,-500.0,0.00047425,10]
[355873612,1741666240014,-500.0,0.00047425,10]
[355873613,1741666240023,-1153.9018387,0.0004743,2]
[355873614,1741666240033,-1800.0,0.00047485,2]
[355873615,1741666240043,-156.26,0.000475,30]
[355873616,1741666240053,-2293.71,0.000475,30]
[355873617,1741666240063,-758.04,0.000475,30]
[355873618,1741666240072,-2960.82082842,0.000475,2]
[355873619,1741666240082,-151.0,0.000475,27]
[355873620,1741666240092,-872.04,0.00047506,120]
[355873621,1741666240102,-872.04,0.00047506,120]
[355873622,1741666240112,-872.04,0.00047506,120]
[355873623,1741666240122,-872.04,0.00047506,120]
[355873624,1741666240132,-872.04,0.00047506,120]
[355873625,1741666240141,-872.04,0.00047506,120]
[355873626,1741666240151,-872.04,0.00047506,120]
[355873627,1741666240161,-872.04,0.00047506,120]
[355873628,1741666240171,-872.04,0.00047506,120]
[355873629,1741666240180,-872.04,0.00047506,120]
[355873630,1741666240190,-872.04,0.00047506,120]
[355873631,1741666240201,-872.04,0.00047506,120]
[355873632,1741666240211,-872.04,0.00047506,120]
[355873633,1741666240220,-872.04,0.00047506,120]
[355873634,1741666240229,-872.04,0.00047506,120]
[355873635,1741666240239,-872.04,0.00047506,120]
[355873636,1741666240248,-872.04,0.00047506,120]
[355873637,1741666240258,-872.04,0.00047506,120]
[355873638,1741666240268,-872.04,0.00047506,120]
[355873639,1741666240279,-872.04,0.00047506,120]
[355873640,1741666240289,-872.04,0.00047506,120]
[355873641,1741666240299,-872.04,0.00047506,120]
[355873642,1741666240310,-872.04,0.00047506,120]
[355873643,1741666240320,-872.04110254,0.00047506,120]
[355873644,1741666240330,-162.380719,0.00047536,2]
[355873645,1741666240340,-19650.2880613,0.00047547,4]
[355873646,1741666240350,-19650.2880613,0.00047553,4]
[355873647,1741666240360,-6989.92,0.00047553,120]
[355873648,1741666240370,-166.0,0.00047557,30]
[355873649,1741666240380,-200.88,0.00047557,30]
[355873650,1741666240390,-166.0,0.00047557,30]
[355873651,1741666240401,-166.0,0.00047557,30]
[355873652,1741666240412,-166.0,0.00047557,30]
[355873653,1741666240423,-168.0,0.00047557,30]
[355873654,1741666240433,-168.0,0.00047557,30]
[355873655,1741666240444,-168.0,0.00047557,30]
[355873656,1741666240454,-352.0,0.00047557,30]
[355873657,1741666240463,-299.20946297,0.00047557,30]
[355873658,1741666240473,-352.0,0.00047557,30]
[355873659,1741666240482,-352.0,0.00047557,30]
[355873660,1741666240491,-352.0,0.00047557,30]
[355873661,1741666240502,-352.0,0.00047557,30]
[355873662,1741666240511,-352.0,0.00047557,30]
[355873663,1741666240522,-352.0,0.00047557,30]
[355873664,1741666240535,-352.0,0.00047557,30]
[355873665,1741666240546,-316.0,0.00047557,30]
[355873666,1741666240555,-352.0,0.00047557,30]
[355873667,1741666240567,-316.0,0.00047557,30]
[355873668,1741666240577,-352.0,0.00047557,30]
[355873669,1741666240587,-316.0,0.00047557,30]
[355873670,1741666240597,-352.0,0.00047557,30]
[355873671,1741666240608,-316.0,0.00047557,30]
[355873672,1741666240618,-352.0,0.00047557,30]
[355873673,1741666240628,-316.0,0.00047557,30]
[355873674,1741666240638,-352.0,0.00047557,30]
[355873675,1741666240648,-316.0,0.00047557,30]
[355873676,1741666240659,-352.0,0.00047557,30]
[355873677,1741666240670,-316.0,0.00047557,30]
[355873678,1741666240680,-352.0,0.00047557,30]
[355873679,1741666240690,-316.0,0.00047557,30]
[355873680,1741666240700,-316.0,0.00047557,30]
[355873681,1741666240710,-316.0,0.00047557,30]
[355873682,1741666240721,-352.0,0.00047557,30]
[355873683,1741666240731,-316.0,0.00047557,30]
[355873684,1741666240741,-352.0,0.00047557,30]
[355873685,1741666240751,-316.0,0.00047557,30]
[355873686,1741666240761,-352.0,0.00047557,30]
[355873687,1741666240771,-316.0,0.00047557,30]
[355873688,1741666240781,-352.0,0.00047557,30]
[355873689,1741666240791,-352.0,0.00047557,30]
[355873690,1741666240801,-316.0,0.00047557,30]
[355873691,1741666240810,-352.0,0.00047557,30]
[355873692,1741666240820,-316.0,0.00047557,30]
[355873693,1741666240831,-352.0,0.00047557,30]
[355873694,1741666240840,-316.0,0.00047557,30]
[355873695,1741666240849,-352.0,0.00047557,30]
[355873696,1741666240858,-316.0,0.00047557,30]
[355873697,1741666240868,-316.0,0.00047557,30]
[355873698,1741666240878,-316.0,0.00047557,30]
[355873699,1741666240887,-352.0,0.00047557,30]
[355873700,1741666240895,-316.0,0.00047557,30]
[355873701,1741666240905,-352.0,0.00047557,30]
[355873702,1741666240915,-316.0,0.00047557,30]
[355873703,1741666240924,-352.0,0.00047557,30]
[355873704,1741666240934,-352.0,0.00047557,30]
[355873705,1741666240943,-352.0,0.00047557,30]
[355873706,1741666240954,-352.0,0.00047557,30]
[355873707,1741666240963,-352.0,0.00047557,30]
[355873708,1741666240973,-352.0,0.00047557,30]
[355873710,1741666240983,-352.0,0.00047557,30]
[355873712,1741666240992,-316.0,0.00047557,30]
[355873713,1741666241002,-352.0,0.00047557,30]
[355873714,1741666241012,-316.0,0.00047557,30]
[355873715,1741666241022,-352.0,0.00047557,30]
[355873716,1741666241031,-352.0,0.00047557,30]
[355873717,1741666241041,-316.0,0.00047557,30]
[355873718,1741666241051,-352.0,0.00047557,30]
[355873719,1741666241062,-316.0,0.00047557,30]
[355873720,1741666241071,-352.0,0.00047557,30]
[355873721,1741666241081,-316.0,0.00047557,30]
[355873722,1741666241091,-352.0,0.00047557,30]
[355873723,1741666241101,-316.0,0.00047557,30]
[355873724,1741666241111,-316.0,0.00047557,30]
[355873725,1741666241121,-352.0,0.00047557,30]
[355873726,1741666241130,-352.0,0.00047557,30]
[355873727,1741666241139,-316.0,0.00047557,30]
[355873728,1741666241149,-352.0,0.00047557,30]
[355873729,1741666241160,-352.0,0.00047557,30]
[355873730,1741666241170,-316.0,0.00047557,30]
[355873731,1741666241179,-352.0,0.00047557,30]
[355873732,1741666241189,-352.0,0.00047557,30]
[355873733,1741666241198,-352.0,0.00047557,30]
[355873734,1741666241208,-352.0,0.00047557,30]
[355873735,1741666241218,-352.0,0.00047557,30]
[355873736,1741666241227,-352.0,0.00047557,30]
[355873737,1741666241237,-316.0,0.00047557,30]
[355873738,1741666241247,-352.0,0.00047557,30]
[355873739,1741666241256,-419.04979309,0.00047557,30]
[355873740,1741666241266,-352.0,0.00047557,30]
[355873741,1741666241275,-352.0,0.00047557,30]
[355873742,1741666241285,-352.0,0.00047557,30]
[355873743,1741666241294,-352.0,0.00047557,30]
[355873744,1741666241304,-352.0,0.00047557,30]
[355873745,1741666241313,-352.0,0.00047557,30]
[355873746,1741666241323,-352.0,0.00047557,30]
[355873747,1741666241333,-352.0,0.00047557,30]
[355873748,1741666241341,-352.0,0.00047557,30]
[355873749,1741666241350,-352.0,0.00047557,30]
[355873750,1741666241361,-352.0,0.00047557,30]
[355873751,1741666241370,-490.74357343,0.00047557,30]
[355873752,1741666241380,-159.89199501,0.00047562,120]
[355873753,1741666241390,-151.0,0.00047563,120]
[355873754,1741666241400,-493.890718,0.00047563,110]
[355873755,1741666241411,-493.890718,0.00047563,110]
[355873756,1741666241420,-500.0,0.00047671,120]
[355873757,1741666241430,-814.17,0.00047671,60]
[355873758,1741666241440,-422.287115,0.00047671,120]
[355873759,1741666241450,-422.287115,0.00047671,120]
[355873760,1741666241460,-452.72757182,0.00047673,10]
[355873761,1741666241470,-547.47313752,0.00047673,10]
[355873762,1741666241480,-500.0,0.00047673,120]
[355873763,1741666241490,-486.43,0.000477,30]
[355873764,1741666241500,-317.83,0.000477,30]
[355873765,1741666241510,-316.0,0.00047708,30]
[355873766,1741666241520,-316.0,0.00047708,30]
[355873767,1741666241533,-316.0,0.00047708,30]
[355873768,1741666241543,-416.63065911,0.00047708,30]
[355873769,1741666241554,-416.66666667,0.0004771,30]
[355873770,1741666241565,-1000.0,0.00047773,60]
[355873771,1741666241575,-402.0,0.000478,2]
[355873772,1741666241585,-1000.0,0.000478,60]
[355873773,1741666241594,-55001.061422,0.000478,30]
[355873774,1741666241606,-151.0,0.000478,28]
[355873775,1741666241616,-1032.544579,0.000478,56]
[355873776,1741666241627,-151.0,0.000478,27]
[355873777,1741666241637,-159.89199501,0.00047808,120]
[355873778,1741666241647,-1000.0,0.00047863,2]
[355873779,1741666241659,-1000.0,0.00047863,2]
[355873780,1741666241669,-1000.0,0.00047863,2]
[355873781,1741666241678,-1000.0,0.00047863,2]
[355873782,1741666241687,-1000.0,0.00047863,2]
[355873783,1741666241697,-1000.0,0.00047863,2]
[355873784,1741666241707,-1000.0,0.00047863,2]
[355873785,1741666241717,-1000.0,0.00047863,2]
[355873786,1741666241727,-1000.0,0.00047863,2]
[355873787,1741666241737,-1000.0,0.00047863,2]
[355873788,1741666241746,-1000.0,0.00047863,2]
[355873789,1741666241757,-1000.0,0.00047863,2]
[355873790,1741666241946,-589.83134098,0.00047863,2]
[355873791,1741666241958,-500.0,0.00047873,10]
[355873792,1741666241968,-799.3854481,0.0004789,30]
[355873793,1741666241979,-166.071866,0.000479,120]
[355873794,1741666241989,-583.36,0.000479,30]
[355873795,1741666241999,-422.287115,0.000479,120]
[355873796,1741666242009,-422.287115,0.000479,120]
[355873797,1741666242019,-160.0,0.00047936,6]
[355873798,1741666242029,-226.99,0.00047938,30]
[355873799,1741666242038,-2020.24178586,0.00047945,120]
[355873800,1741666242048,-814.17,0.00047945,60]
[355873801,1741666242058,-6000.0,0.00047945,10]
[355873802,1741666242068,-500.0,0.00047947,120]
[355873803,1741666242077,-10004.021668,0.00048,2]
[355873804,1741666242087,-159.222439,0.00048,3]
[355873805,1741666242097,-442.0,0.00048,90]
[355873806,1741666242107,-157.883683,0.00048005,120]
[355873807,1741666242116,-151.0,0.00048005,120]
[355873808,1741666242125,-151.0,0.00048005,120]
[355873809,1741666242134,-339.338902,0.00048015,120]
[355873810,1741666242144,-339.338902,0.00048015,120]
[355873811,1741666242154,-800.0,0.00048041,14]
[355873812,1741666242164,-800.0,0.0004805,14]
[355873813,1741666242176,-800.0,0.0004805,14]
[355873814,1741666242186,-159.89199501,0.00048055,120]
[355873815,1741666242195,-800.0,0.00048055,14]
[355873816,1741666242205,-800.0,0.00048058,14]
[355873817,1741666242215,-836.00177613,0.00048059,14]
[355873818,1741666242225,-500.0,0.00048073,10]
[355873819,1741666242235,-344.62656963,0.00048073,10]
[355873820,1741666242244,-489.02267994,0.00048073,10]
[355873821,1741666242255,-524.55119073,0.00048073,10]
[355873822,1741666242264,-168.3888056,0.00048084,2]
[355873823,1741666242274,-151.0,0.000481,23]
[355873824,1741666242283,-151.0,0.000481,24]
[355873825,1741666242293,-329000.0,0.000481,7]
[355873826,1741666242303,-8766.03,0.0004813,9]
[355873827,1741666242313,-160.632057,0.00048159,120]
[355873828,1741666242322,-16906.96811391,0.000482,120]
[355873829,1741666242332,-5000.0,0.000482,120]
[355873830,1741666242343,-1000.0,0.000482,120]
[355873831,1741666242353,-500.0,0.00048219,120]
[355873832,1741666242364,-814.17,0.00048219,60]
[355873833,1741666242375,-310.7790786,0.00048219,30]
[355873834,1741666242384,-500.0,0.00048221,120]
[355873835,1741666242395,-791.92078563,0.00048237,14]
[355873836,1741666242405,-800.0,0.00048242,14]
[355873837,1741666242415,-800.0,0.00048287,14]
[355873838,1741666242426,-508.21556026,0.0004829,60]
[355873839,1741666242437,-308.7506131,0.00048298,2]
[355873840,1741666242447,-3000.0,0.00048298,2]
[355873842,1741666242457,-1280.0,0.000483,120]
[355873843,1741666242466,-156.26,0.000483,30]
[355873844,1741666242476,-2293.71,0.000483,30]
[355873845,1741666242487,-758.04,0.000483,30]
[355873846,1741666242497,-151.0,0.000483,29]
[355873847,1741666242507,-486.43,0.000483,30]
[355873848,1741666242517,-317.83,0.000483,30]
[355873849,1741666242530,-155.522932,0.000483,120]
[355873850,1741666242542,-150.0,0.000483,120]
[355873851,1741666242553,-1000.0,0.000483,56]
[355873852,1741666242563,-184.092956,0.000483,2]
[355873854,1741666242573,-151.0,0.000483,120]
[355873855,1741666242584,-493.890718,0.000483,110]
[355873856,1741666242595,-493.890718,0.000483,110]
[355873857,1741666242608,-3022.32003284,0.000483,120]
[355873858,1741666242618,-21028.79376309,0.000483,120]
[355873859,1741666242629,-159.89199501,0.00048301,120]
[355873860,1741666242640,-442.0,0.00048356,90]
[355873861,1741666242650,-500.0,0.00048373,10]
[355873862,1741666242662,-389.52564847,0.00048373,10]
[355873863,1741666242673,-500.0,0.00048373,10]
[355873864,1741666242683,-500.0,0.00048373,10]
[355873865,1741666242694,-500.0,0.00048373,10]
[355873867,1741666242704,-505.2304907,0.00048373,2]
[355873868,1741666242714,-500.0,0.00048373,10]
[355873870,1741666242724,-500.0,0.00048373,10]
[355873872,1741666242735,-151.0,0.0004839,120]
[355873874,1741666242744,-151.0,0.0004839,120]
[355873875,1741666242755,-353.764578,0.0004839,120]
[355873877,1741666242764,-353.764578,0.0004839,120]
[355873879,1741666242775,-151.0,0.0004839,120]
[355873881,1741666242786,-152.937808,0.0004839,120]
[355873882,1741666242796,-151.0,0.0004839,120]
[355873883,1741666242806,-151.0,0.0004839,120]
[355873884,1741666242816,-151.0,0.0004839,120]